bitfinex/quotes_SOLUSD_20251125
["timestamp","ask_amount","ask_price","bid_price","bid_amount"]
[1764075036958,8.80994492,136.18,136.17,0.8]
[1764075037271,8.80994492,136.18,136.17,0.2]
[1764075037893,11.12667223,136.18,136.17,0.2]
[1764075039762,8.80994492,136.18,136.17,0.2]
[1764075039972,11.12667223,136.18,136.17,0.2]
[1764075043286,8.80994492,136.18,136.17,7.54376147]
[1764075043883,8.80994492,136.18,136.17,0.2]
[1764075045168,11.12667223,136.18,136.17,0.2]
[1764075045367,11.80667223,136.18,136.17,0.2]
[1764075045666,11.12667223,136.18,136.17,0.2]
[1764075045872,11.9488338,136.18,136.17,0.2]
[1764075047373,8.95210649,136.18,136.17,0.2]
[1764075047591,11.2688338,136.18,136.17,0.2]
[1764075048086,8.80994492,136.18,136.17,7.54376147]
[1764075048581,8.80994492,136.18,136.17,0.2]
[1764075048995,8.80994492,136.18,136.17,7.54376147]
[1764075049390,8.80994492,136.18,136.17,8.14376147]
[1764075049976,8.80994492,136.18,136.17,7.54376147]
[1764075050796,3.26,136.19,136.17,28.81989246]
[1764075051002,3.26,136.22,136.18,2.91672731]
[1764075051204,3.26,136.23,136.2,2.31672731]
[1764075051394,3.26,136.23,136.21,7.34160487]
[1764075051789,3.26,136.23,136.21,7.94160487]
[1764075052109,0.1,136.33,136.22,0.6]
[1764075052276,0.68,136.31,136.22,3.86]
[1764075052477,2.31672731,136.29,136.24,2.31672731]
[1764075052693,2.31672731,136.28,136.24,2.31672731]
[1764075052918,8.80994492,136.27,136.24,2.91672731]
[1764075053108,8.80994492,136.27,136.25,0.6]
[1764075053311,8.80994492,136.25,136.23,7.34052704]
[1764075053779,8.80994492,136.25,136.23,7.94052704]
[1764075054803,3.26,136.27,136.23,7.94052704]
[1764075054804,15.69585623,136.27,136.23,26.29184466]
[1764075054988,16.39585623,136.27,136.23,26.29184466]
[1764075055195,12.76994492,136.27,136.23,26.29184466]
[1764075055396,16.39585623,136.27,136.23,26.29184466]
[1764075055598,8.80994492,136.25,136.23,7.34052704]
[1764075055800,12.43585623,136.25,136.22,7.34086805]
[1764075056010,6.88591131,136.24,136.22,7.34086805]
[1764075056391,3.26,136.24,136.22,7.34086805]
[1764075058704,8.80994492,136.23,136.21,7.3414567]
[1764075058899,8.80994492,136.23,136.21,7.9414567]
[1764075059303,8.80994492,136.23,136.21,7.3414567]
[1764075059815,3.26,136.24,136.21,10.96736801]
[1764075059996,12.21210649,136.26,136.22,4.22591131]
[1764075060197,12.06994492,136.26,136.23,3.62591131]
[1764075060402,12.06994492,136.26,136.23,0.6]
[1764075060600,4.45807288,136.25,136.2,10.96787506]
[1764075060919,12.43585623,136.22,136.2,7.34196375]
[1764075062415,12.43585623,136.22,136.18,7.3432222]
[1764075062416,13.12585623,136.22,136.18,7.3432222]
[1764075062725,8.80994492,136.2,136.18,7.3432222]
[1764075062902,8.80994492,136.2,136.17,8.14355477]
[1764075063107,8.95210649,136.22,136.18,0.6]
[1764075063306,8.80994492,136.26,136.21,3.62591131]
[1764075063495,8.80994492,136.26,136.22,4.22591131]
[1764075063698,8.80994492,136.26,136.23,3.62591131]
[1764075063894,3.62591131,136.31,136.25,10.96536085]
[1764075064092,3.62591131,136.31,136.26,3.62591131]
[1764075064319,3.26,136.31,136.27,4.22591131]
[1764075064492,3.26,136.31,136.28,9.610398]
[1764075064809,3.26,136.31,136.29,9.610398]
[1764075065013,0.1,136.33,136.3,9.610398]
[1764075065209,0.1,136.33,136.32,9.610398]
[1764075065611,0.1,136.33,136.32,10.210398]
[1764075065919,3.36,136.37,136.32,10.210398]
[1764075066110,3.36,136.37,136.34,9.610398]
[1764075066509,3.36,136.37,136.34,10.210398]
[1764075066704,3.36,136.37,136.35,10.210398]
[1764075066906,0.1,136.37,136.35,0.6]
[1764075067107,8.90994492,136.37,136.33,7.33514266]
[1764075067310,8.90994492,136.37,136.33,16.94554066]
[1764075067603,19.21034292,136.37,136.33,7.33514266]
[1764075067940,8.80994492,136.33,136.3,7.33661953]
[1764075068125,18.42034292,136.33,136.3,7.33661953]
[1764075068500,8.80994492,136.31,136.27,9.610398]
[1764075069008,19.11034292,136.31,136.26,26.519262]
[1764075069420,9.49994492,136.31,136.27,9.610398]
[1764075069600,8.80994492,136.31,136.27,10.210398]
[1764075069799,9.610398,136.32,136.29,9.610398]
[1764075069800,8.80994492,136.32,136.29,9.610398]
[1764075070024,8.80994492,136.32,136.29,7.33729547]
[1764075071025,19.11034292,136.32,136.29,7.33729547]
[1764075071206,18.42034292,136.32,136.29,7.33729547]
[1764075071929,12.870398,136.34,136.3,0.6]
[1764075072126,8.80994492,136.33,136.3,7.93625192]
[1764075072815,8.80994492,136.33,136.3,7.33625192]
[1764075073002,8.80994492,136.33,136.3,25.6781448]
[1764075073628,18.42034292,136.33,136.3,7.33625192]
[1764075073941,19.11034292,136.33,136.3,7.33625192]
[1764075074431,19.11034292,136.33,136.29,7.33729547]
[1764075074814,19.11034292,136.33,136.29,7.93729547]
[1764075075532,9.610398,136.32,136.29,7.33729547]
[1764075075933,9.610398,136.32,136.29,7.93729547]
[1764075076526,18.42034292,136.33,136.29,7.93729547]
[1764075076726,19.11034292,136.33,136.29,7.33729547]
[1764075077032,18.42034292,136.33,136.29,7.93729547]
[1764075077217,18.42034292,136.33,136.29,26.28053415]
[1764075077534,19.11034292,136.33,136.29,26.28053415]
[1764075078429,19.11034292,136.33,136.29,7.33729547]
[1764075079034,19.11034292,136.33,136.29,7.93729547]
[1764075079614,19.11034292,136.33,136.29,7.33729547]
[1764075080140,8.80994492,136.31,136.29,7.33729547]
[1764075080310,3.26,136.34,136.27,7.33809697]
[1764075080511,8.80994492,136.33,136.29,10.210398]
[1764075080926,9.49994492,136.33,136.29,10.210398]
[1764075081830,19.11034292,136.33,136.29,10.210398]
[1764075082522,18.42034292,136.31,136.27,27.95632887]
[1764075082742,21.68034292,136.31,136.27,27.95632887]
[1764075082931,22.37034292,136.31,136.27,28.55632887]
[1764075083245,12.75994492,136.31,136.27,28.55632887]
[1764075083432,22.37034292,136.31,136.27,16.9485557]
[1764075083637,22.37034292,136.31,136.27,17.5485557]
[1764075084152,12.75994492,136.31,136.27,35.89448657]
[1764075084358,12.75994492,136.31,136.28,9.610398]
[1764075085054,12.75994492,136.31,136.27,28.55632887]
[1764075085758,12.75994492,136.31,136.28,7.33764231]
[1764075087844,0.72,136.3,136.28,7.33764231]
[1764075088035,12.78994492,136.31,136.28,7.33764231]
[1764075088947,12.78994492,136.31,136.26,7.3389109]
[1764075088948,18.42034292,136.29,136.26,7.3389109]
[1764075089442,8.80994492,136.29,136.26,35.89658616]
[1764075091035,9.52994492,136.29,136.26,35.29658616]
[1764075091239,9.52994492,136.29,136.26,25.68618816]
[1764075091434,0.72,136.32,136.28,9.610398]
[1764075091631,9.52994492,136.33,136.29,9.610398]
[1764075091954,0.72,136.32,136.29,9.610398]
[1764075092626,0.72,136.32,136.28,72.510398]
[1764075093251,12.06994492,136.31,136.29,7.33729547]
[1764075095956,3.26,136.31,136.29,7.33729547]
[1764075096362,12.06994492,136.31,136.29,7.33729547]
[1764075097465,12.78994492,136.31,136.29,7.33729547]
[1764075098537,9.52994492,136.3,136.28,7.33772403]
[1764075098869,19.14034292,136.3,136.27,69.63810624]
[1764075099032,0.72,136.29,136.27,69.63810624]
[1764075099529,19.14034292,136.3,136.27,69.63810624]
[1764075099744,9.52994492,136.3,136.27,69.63810624]
[1764075099949,0.72,136.29,136.27,69.63810624]
[1764075100443,0.72,136.29,136.26,69.6386517]
[1764075100957,10.330398,136.29,136.26,69.63890351]
[1764075101256,3.26,136.31,136.27,9.610398]
[1764075101451,8.80994492,136.32,136.29,9.610398]
[1764075101653,8.80994492,136.32,136.3,7.33675715]
[1764075101954,0.14216157,136.3,136.24,0.6]
[1764075102157,9.610398,136.27,136.22,9.610398]
[1764075102634,9.610398,136.27,136.22,10.210398]
[1764075102953,9.610398,136.27,136.23,0.6]
[1764075103252,10.330398,136.27,136.23,0.6]
[1764075103659,10.330398,136.27,136.24,7.33998825]
[1764075105151,9.610398,136.25,136.23,7.3404556]
[1764075105536,10.330398,136.25,136.23,7.3404556]
[1764075106461,10.330398,136.25,136.22,7.34106592]
[1764075106761,4.34678993,136.25,136.22,7.34106592]
[1764075107146,4.34678993,136.25,136.22,69.64106592]
[1764075108158,0.72,136.25,136.22,69.64106592]
[1764075108359,4.34678993,136.26,136.22,91.85373072]
[1764075109137,4.34678993,136.26,136.22,88.59373072]
[1764075109352,4.34678993,136.26,136.22,91.85373072]
[1764075109663,4.34678993,136.26,136.22,88.59373072]
[1764075110158,0.72,136.25,136.22,87.99373072]
[1764075110337,0.72,136.25,136.22,88.59373072]
[1764075110747,0.72,136.25,136.22,91.85373072]
[1764075111149,3.62678993,136.26,136.24,7.33998825]
[1764075111358,4.34678993,136.26,136.24,7.33998825]
[1764075111737,4.34678993,136.26,136.23,10.60043169]
[1764075111957,3.62678993,136.26,136.23,10.60043169]
[1764075112150,4.34678993,136.26,136.23,7.34043169]
[1764075112354,0.72,136.25,136.23,3.26]
[1764075112672,0.72,136.25,136.22,69.64080488]
[1764075113050,0.72,136.25,136.22,72.90080488]
[1764075113557,4.30678993,136.26,136.22,70.24080488]
[1764075113754,3.62678993,136.25,136.22,70.24080488]
[1764075114279,3.62678993,136.25,136.22,73.50080488]
[1764075114577,4.30678993,136.26,136.22,91.85346968]
[1764075114879,3.62678993,136.26,136.23,0.6]
[1764075115173,4.30678993,136.26,136.22,91.85346968]
[1764075115554,8.80994492,136.26,136.22,91.25346968]
[1764075115873,8.80994492,136.26,136.23,0.6]
[1764075116073,8.80994492,136.26,136.22,91.25346968]
[1764075116269,13.11673485,136.26,136.22,91.85346968]
[1764075116674,11.81060029,136.26,136.22,91.85346968]
[1764075118886,8.80994492,136.28,136.24,2.32065537]
[1764075119092,8.80994492,136.28,136.25,3.26]
[1764075119267,8.80994492,136.28,136.25,3.86]
[1764075119460,9.47994492,136.28,136.25,3.26]
[1764075119793,9.47994492,136.28,136.26,3.26]
[1764075120501,9.47994492,136.28,136.26,10.59877491]
[1764075120861,0.67,136.3,136.26,28.94605217]
[1764075121178,0.67,136.29,136.26,28.94605217]
[1764075121361,0.67,136.29,136.26,10.59877491]
[1764075121561,2.99065537,136.29,136.26,10.59877491]
[1764075122083,0.67,136.28,136.26,10.59877491]
[1764075122463,11.80060029,136.28,136.26,10.59877491]
[1764075123488,11.80060029,136.27,136.24,62.3]
[1764075123784,2.32065537,136.26,136.24,69.63996859]
[1764075123981,2.99065537,136.26,136.24,69.63996859]
[1764075124598,0.67,136.26,136.24,69.63996859]
[1764075125471,8.80994492,136.27,136.24,69.73996859]
[1764075125787,11.80060029,136.27,136.24,69.13996859]
[1764075126883,11.13060029,136.25,136.21,18.35315423]
[1764075127084,2.32065537,136.24,136.22,3.26]
[1764075127288,2.99065537,136.24,136.22,3.26]
[1764075127599,2.32065537,136.24,136.22,3.26]
[1764075127795,0.67,136.23,136.21,10.60142897]
[1764075127971,2.99065537,136.24,136.21,10.60142897]
[1764075128603,16.978864,136.28,136.22,0.6]
[1764075128805,16.978864,136.28,136.24,7.33998825]
[1764075128806,8.80994492,136.27,136.24,7.33998825]
[1764075128987,8.80994492,136.27,136.25,3.26]
[1764075130004,8.80994492,136.28,136.25,3.86]
[1764075130385,9.47994492,136.28,136.25,3.26]
[1764075130807,9.47994492,136.28,136.24,28.61061426]
[1764075131010,9.47994492,136.28,136.25,3.26]
[1764075131176,2.99065537,136.27,136.24,7.33998825]
[1764075131381,2.99065537,136.27,136.25,3.26]
[1764075131574,0.67,136.27,136.25,3.26]
[1764075131980,11.13060029,136.28,136.25,3.26]
[1764075132184,11.80060029,136.28,136.25,3.26]
[1764075132599,0.67,136.3,136.25,3.86]
[1764075132803,11.80060029,136.29,136.26,3.26]
[1764075133101,2.32065537,136.28,136.26,3.26]
[1764075133296,2.99065537,136.28,136.26,3.26]
[1764075133607,2.32065537,136.28,136.23,18.35088999]
[1764075133781,2.99065537,136.27,136.25,3.26]
[1764075133978,2.32065537,136.27,136.25,65.06]
[1764075134596,2.32065537,136.28,136.25,65.06]
[1764075134792,2.99065537,136.28,136.25,65.06]
[1764075134996,2.99065537,136.27,136.25,72.39938774]
[1764075135607,0.67,136.27,136.25,72.39938774]
[1764075136002,0.67,136.27,136.25,65.06]
[1764075137087,0.67,136.27,136.25,61.8]
[1764075137292,0.67,136.27,136.25,69.13940352]
[1764075138106,0.67,136.28,136.25,61.8]
[1764075138308,0.67,136.27,136.25,69.1394429]
[1764075138989,0.67,136.27,136.25,61.8]
[1764075139994,0.67,136.27,136.24,72.39975745]
[1764075139995,8.00842343,136.27,136.24,72.39975745]
[1764075140191,8.00842343,136.27,136.24,69.13975745]
[1764075140406,0.67,136.26,136.24,72.39975745]
[1764075141006,8.80994492,136.27,136.24,72.39975745]
[1764075141207,9.47994492,136.27,136.24,72.39975745]
[1764075142008,8.80994492,136.27,136.24,72.39975745]
[1764075142193,0.67,136.26,136.24,72.39975745]
[1764075146616,0.67,136.26,136.24,61.8]
[1764075146926,11.13060029,136.25,136.21,69.14147281]
[1764075147215,8.80994492,136.25,136.21,9.66212818]
[1764075147412,9.49994492,136.25,136.22,3.26]
[1764075149017,16.83942232,136.25,136.22,3.26]
[1764075149707,16.83942232,136.25,136.2,80.1548076]
[1764075149708,0.69,136.24,136.2,71.46252596]
[1764075149912,0.69,136.24,136.21,3.26]
[1764075150727,8.80994492,136.23,136.2,69.14187059]
[1764075150945,8.80994492,136.23,136.21,3.26]
[1764075151129,0.69,136.22,136.21,3.26]
[1764075151533,0.69,136.22,136.2,10.60187059]
[1764075152438,8.80994492,136.23,136.2,10.60187059]
[1764075152439,9.49994492,136.23,136.2,10.60187059]
[1764075153148,4.80994492,136.23,136.2,10.60187059]
[1764075153347,5.49994492,136.23,136.2,10.60187059]
[1764075153931,0.69,136.22,136.2,12.92252596]
[1764075154542,0.69,136.22,136.2,9.66252596]
[1764075154740,3.01065537,136.22,136.19,61.8]
[1764075154951,10.35207356,136.22,136.19,61.8]
[1764075155258,0.69,136.21,136.19,61.8]
[1764075155761,8.80994492,136.2,136.17,0.2]
[1764075155925,11.13060029,136.2,136.17,0.2]
[1764075156257,8.80994492,136.18,136.17,0.2]
[1764075157136,0.69,136.18,136.17,0.2]
[1764075158145,9.49994492,136.21,136.17,0.2]
[1764075158346,16.308864,136.24,136.18,3.26]
[1764075158554,16.308864,136.24,136.21,2.32065537]
[1764075158555,0.69,136.24,136.21,2.32065537]
[1764075159058,0.69,136.24,136.21,9.66192841]
[1764075159230,0.69,136.24,136.21,7.34127304]
[1764075160038,8.030008,136.24,136.2,12.92265433]
[1764075160222,8.80994492,136.23,136.2,3.26]
[1764075160425,9.49994492,136.23,136.2,10.60199796]
[1764075160651,0.69,136.23,136.2,9.66265333]
[1764075161329,0.69,136.24,136.2,10.26265333]
[1764075161828,3.01065537,136.24,136.19,9.66311874]
[1764075162125,3.01065537,136.24,136.19,12.92311874]
[1764075162341,0.69,136.23,136.19,12.92311874]
[1764075163352,3.01065537,136.23,136.19,10.60246337]
[1764075163553,3.01065537,136.23,136.19,72.40246337]
[1764075163749,0.69,136.22,136.19,72.40246337]
[1764075163941,0.69,136.22,136.19,69.14246337]
[1764075164858,0.69,136.22,136.19,71.46311874]
[1764075166256,0.69,136.22,136.19,62.4]
[1764075166453,0.69,136.22,136.19,72.06321734]
[1764075167764,16.8399846,136.24,136.2,2.32065537]
[1764075167946,0.69,136.23,136.2,2.32065537]
[1764075168842,16.14965474,136.25,136.21,2.92065537]
[1764075169154,8.80994492,136.26,136.23,2.32065537]
[1764075169339,9.49994492,136.26,136.23,2.32065537]
[1764075169747,9.49994492,136.26,136.23,9.66102374]
[1764075170535,16.83888609,136.26,136.23,2.32065537]
[1764075170732,9.49994492,136.26,136.23,9.66108379]
[1764075171133,22.75612482,136.28,136.24,2.92065537]
[1764075171460,8.80994492,136.27,136.25,2.32065537]
[1764075171765,8.80994492,136.27,136.25,9.65974827]
[1764075171963,9.49994492,136.27,136.25,9.65974827]
[1764075172362,8.80994492,136.28,136.25,9.65974827]
[1764075172564,9.49994492,136.28,136.25,9.65974827]
[1764075173752,22.0628792,136.3,136.26,2.32065537]
[1764075174065,0.82216157,136.31,136.28,2.32065537]
[1764075174066,0.68,136.31,136.28,2.32065537]
[1764075174368,0.68,136.34,136.3,2.32065537]
[1764075174549,0.68,136.34,136.3,5.58065537]
[1764075175057,8.80994492,136.33,136.3,5.58065537]
[1764075175239,8.80994492,136.33,136.27,2.32065537]
[1764075175446,0.68,136.32,136.27,5.58065537]
[1764075175644,0.68,136.32,136.28,2.32065537]
[1764075175946,0.68,136.32,136.29,7.33729547]
[1764075177157,19.76792534,136.33,136.29,7.33729547]
[1764075177158,8.80994492,136.33,136.3,4.22280247]
[1764075177370,9.48994492,136.33,136.3,3.62280247]
[1764075177552,9.52994492,136.35,136.31,4.22280247]
[1764075177753,9.52994492,136.35,136.31,10.95849911]
[1764075177968,8.80994492,136.33,136.31,10.95849911]
[1764075178675,0.72,136.33,136.31,7.33569664]
[1764075178860,0.72,136.32,136.3,7.33658717]
[1764075180169,0.72,136.32,136.29,69.13716908]
[1764075180671,0.72,136.32,136.29,72.75997155]
[1764075180851,0.72,136.33,136.29,73.35997155]
[1764075181052,0.72,136.33,136.3,3.62280247]
[1764075181562,0.72,136.33,136.29,10.95997155]
[1764075181864,4.34280247,136.33,136.29,7.33716908]
[1764075182255,0.72,136.32,136.29,7.33716908]
[1764075182966,0.72,136.32,136.29,10.95997155]
[1764075184662,8.80994492,136.31,136.29,7.33716908]
[1764075184872,3.26,136.34,136.3,3.62280247]
[1764075185076,12.43274739,136.35,136.33,3.62280247]
[1764075185275,8.80994492,136.35,136.34,3.62280247]
[1764075185574,8.80994492,136.35,136.33,3.62280247]
[1764075186367,8.80994492,136.35,136.34,7.33460466]
[1764075187065,8.80994492,136.35,136.33,10.95775748]
[1764075187480,9.52994492,136.35,136.32,3.62280247]
[1764075187790,9.52994492,136.35,136.33,7.33507807]
[1764075188853,8.80994492,136.35,136.33,7.33507807]
[1764075189484,9.52994492,136.35,136.33,3.62280247]
[1764075190460,9.52994492,136.35,136.32,73.25848322]
[1764075190661,9.52994492,136.35,136.32,73.85848322]
[1764075191806,9.52994492,136.35,136.33,3.62280247]
[1764075192283,9.52994492,136.35,136.32,92.19768509]
[1764075192485,9.52994492,136.35,136.32,91.59768509]
[1764075193966,9.52994492,136.35,136.29,40.30927983]
[1764075193967,13.15274739,136.34,136.29,21.96513902]
[1764075194204,12.43274739,136.32,136.28,7.33764493]
[1764075194362,3.62280247,136.31,136.27,3.26]
[1764075194564,8.80994492,136.3,136.27,10.59829833]
[1764075194876,9.52994492,136.3,136.27,14.8211008]
[1764075195085,9.52994492,136.3,136.27,14.2211008]
[1764075196290,0.72,136.29,136.27,10.9611008]
[1764075196486,8.80994492,136.3,136.27,10.9611008]
[1764075196695,9.52994492,136.3,136.27,10.9611008]
[1764075199193,9.52994492,136.3,136.27,73.2611008]
[1764075199987,8.80994492,136.28,136.27,62.3]
[1764075200388,0.72,136.28,136.27,62.3]
[1764075200888,4.34280247,136.28,136.24,62.3]
[1764075201279,0.72,136.27,136.24,62.3]
[1764075201879,0.72,136.27,136.24,69.63996058]
[1764075202371,0.72,136.27,136.24,69.63983823]
[1764075204309,0.72,136.27,136.24,73.2626407]
[1764075204689,20.112354,136.29,136.24,73.8626407]
[1764075204886,27.44967752,136.29,136.24,73.8626407]
[1764075206681,8.02788919,136.28,136.24,73.8626407]
[1764075206993,0.69,136.28,136.24,73.8626407]
[1764075207169,8.80994492,136.34,136.27,3.62280247]
[1764075207373,0.79,136.37,136.33,3.62280247]
[1764075207574,0.1,136.37,136.34,3.62280247]
[1764075207796,0.1,136.37,136.34,4.15920247]
[1764075208102,8.90994492,136.37,136.34,4.15920247]
[1764075208485,0.1,136.37,136.36,3.62280247]
[1764075208682,0.1,136.37,136.36,10.95633136]
[1764075209076,0.1,136.37,136.36,11.62633136]
[1764075209803,0.1,136.4,136.39,3.62280247]
[1764075210011,0.79,136.4,136.37,3.62280247]
[1764075210792,8.80994492,136.39,136.36,3.62280247]
[1764075211002,8.80994492,136.39,136.36,0.67]
[1764075211198,9.49994492,136.39,136.35,6.88280247]
[1764075211414,9.49994492,136.39,136.36,0.67]
[1764075211610,9.49994492,136.39,136.35,7.55280247]
[1764075212418,9.49994492,136.39,136.35,14.88686921]
[1764075214354,8.80994492,136.39,136.35,14.88686921]
[1764075214505,0.69,136.38,136.34,14.21720638]
[1764075214814,8.80994492,136.39,136.36,3.62280247]
[1764075215012,9.49994492,136.39,136.36,4.29280247]
[1764075215197,0.69,136.38,136.35,3.62280247]
[1764075215719,0.69,136.38,136.35,4.29280247]
[1764075216287,0.69,136.38,136.35,11.62667155]
[1764075216813,0.69,136.38,136.35,10.95667155]
[1764075217494,8.80994492,136.37,136.34,7.33444258]
[1764075217816,8.80994492,136.37,136.35,4.29280247]
[1764075218726,8.80994492,136.37,136.35,11.62675793]
[1764075218913,9.49994492,136.37,136.34,10.95738958]
[1764075219418,8.80994492,136.37,136.34,11.62738958]
[1764075219617,0.14216157,136.37,136.33,10.95775654]
[1764075219821,8.80994492,136.35,136.33,7.33495407]
[1764075220807,0.69,136.35,136.33,7.33495407]
[1764075221011,0.69,136.35,136.33,10.95775654]
[1764075221418,0.69,136.35,136.33,7.33495407]
[1764075222027,0.69,136.35,136.32,62.3]
[1764075222224,0.69,136.35,136.32,73.92836226]
[1764075222424,8.80994492,136.36,136.33,3.62280247]
[1764075222721,0.69,136.35,136.33,3.62280247]
[1764075223525,8.80994492,136.36,136.33,3.62280247]
[1764075223730,0.69,136.35,136.33,3.62280247]
[1764075224525,0.69,136.35,136.32,11.62836226]
[1764075224927,0.69,136.35,136.31,7.3360552]
[1764075225115,7.57280247,136.35,136.31,7.3360552]
[1764075225303,8.80994492,136.34,136.31,7.3360552]
[1764075225508,9.49994492,136.34,136.31,7.3360552]
[1764075225726,0.69,136.33,136.31,7.3360552]
[1764075226027,0.69,136.33,136.3,73.25934966]
[1764075226217,0.69,136.33,136.3,73.92934966]
[1764075227509,25.93929603,136.35,136.31,4.29280247]
[1764075227729,7.33266548,136.38,136.34,3.62280247]
[1764075228032,9.49994492,136.37,136.34,3.62280247]
[1764075228329,9.49994492,136.37,136.33,4.29280247]
[1764075228633,0.69,136.36,136.33,4.29280247]
[1764075229125,0.69,136.36,136.33,11.62763006]
[1764075232430,16.14303599,136.37,136.33,11.62763006]
[1764075232816,9.49994492,136.37,136.33,11.62763006]
[1764075233037,9.49994492,136.37,136.33,11.65763006]
[1764075233227,16.83305407,136.37,136.33,11.65763006]
[1764075233413,0.7,136.36,136.33,11.65763006]
[1764075234832,0.7,136.36,136.33,10.95763006]
[1764075235015,8.0335497,136.36,136.32,73.59551214]
[1764075235222,8.0335497,136.36,136.32,77.21831461]
[1764075235622,0.7,136.36,136.32,77.21831461]
[1764075235820,0.7,136.36,136.33,0.7]
[1764075236132,8.80994492,136.35,136.32,69.63551214]
[1764075236441,0.7,136.34,136.32,7.33551214]
[1764075236815,9.50994492,136.35,136.32,7.33551214]
[1764075238115,9.50994492,136.35,136.31,75.93368495]
[1764075238315,8.80994492,136.33,136.31,69.63612182]
[1764075238815,8.80994492,136.33,136.31,70.35612182]
[1764075239012,8.80994492,136.33,136.31,63.02]
[1764075240232,0.72,136.33,136.31,69.63620672]
[1764075240440,8.80994492,136.34,136.31,69.63620672]
[1764075240615,8.80994492,136.34,136.31,71.95376985]
[1764075240816,8.80994492,136.33,136.31,7.33620672]
[1764075241426,8.80994492,136.33,136.31,9.65376985]
[1764075241613,8.80994492,136.33,136.31,7.33620672]
[1764075241811,8.80994492,136.33,136.31,9.65376985]
[1764075242014,8.80994492,136.33,136.3,6.29756313]
[1764075242416,9.52994492,136.33,136.3,6.29756313]
[1764075242722,9.52994492,136.33,136.3,3.03756313]
[1764075242924,8.80994492,136.33,136.3,8.05670741]
[1764075243142,8.80994492,136.33,136.31,0.72]
[1764075243325,8.80994492,136.33,136.31,3.03756313]
[1764075243525,8.80994492,136.33,136.32,2.31756313]
[1764075243940,9.52994492,136.34,136.31,3.03756313]
[1764075244240,8.80994492,136.33,136.31,3.03756313]
[1764075244542,8.80994492,136.33,136.31,10.3736228]
[1764075249145,3.26,136.35,136.32,3.03756313]
[1764075249356,8.80994492,136.35,136.33,2.31756313]
[1764075249553,0.72,136.35,136.33,2.31756313]
[1764075249755,0.72,136.35,136.32,3.03756313]
[1764075251040,0.72,136.35,136.32,10.37275839]
[1764075252758,3.26,136.37,136.34,2.31756313]
[1764075252963,3.26,136.37,136.33,0.72]
[1764075252964,8.80994492,136.38,136.36,9.65079079]
[1764075254342,9.52994492,136.38,136.36,9.65079079]
[1764075255067,8.80994492,136.38,136.36,9.65079079]
[1764075255750,8.80994492,136.38,136.36,8.05322766]
[1764075255938,8.80994492,136.38,136.36,10.37079079]
[1764075256353,0.82,136.4,136.37,3.03756313]
[1764075256559,9.52994492,136.39,136.37,2.31756313]
[1764075256868,9.52994492,136.39,136.36,7.33322766]
[1764075257166,0.72,136.38,136.36,7.33322766]
[1764075257964,0.72,136.38,136.35,9.65137654]
[1764075258259,0.72,136.38,136.34,10.59435299]
[1764075258442,0.72,136.38,136.35,3.03756313]
[1764075258643,0.72,136.38,136.35,65.33756313]
[1764075259465,0.72,136.38,136.35,72.67125237]
[1764075259858,0.72,136.38,136.35,71.95125237]
[1764075260366,8.80994492,136.37,136.35,62.3]
[1764075260756,9.52994492,136.37,136.35,69.63399519]
[1764075261062,0.72,136.37,136.35,69.63399519]
[1764075262045,12.06994492,136.38,136.35,69.63399519]
[1764075262046,8.80994492,136.38,136.35,71.95155832]
[1764075262364,8.80994492,136.37,136.35,72.67155832]
[1764075262861,0.72,136.38,136.35,72.67155832]
[1764075262862,7.33194037,136.39,136.35,62.3]
[1764075263052,0.72,136.37,136.35,62.3]
[1764075263649,6.29756313,136.37,136.35,62.3]
[1764075263868,8.80994492,136.36,136.35,62.3]
[1764075264053,9.46994492,136.36,136.35,62.3]
[1764075264556,9.46994492,136.36,136.32,9.65293482]
[1764075264557,8.80994492,136.35,136.32,64.61756313]
[1764075264762,9.46994492,136.35,136.32,62.3]
[1764075264960,0.66,136.38,136.33,3.95]
[1764075265164,0.66,136.38,136.34,2.31756313]
[1764075265165,8.80994492,136.37,136.34,2.31756313]
[1764075265357,8.80994492,136.37,136.34,3.00756313]
[1764075265552,8.80994492,136.35,136.32,7.3356547]
[1764075266167,9.46994492,136.35,136.32,7.3356547]
[1764075266572,9.46994492,136.35,136.32,8.0256547]
[1764075266754,9.46994492,136.35,136.32,10.34321783]